Cogmind - Beta 13 @@@ ROGUE MODE // 2024.04.03 @ 14:43:39 Player: sewer jenny Result: Destroyed by Y-54 Guardian with Flak Gun Performance ------------- Evolutions (4) 2000 Regions Visited (7) 1400 Robots Destroyed (42) 210 Value Destroyed (1232) 1232 Prototype IDs (3) 60 Alien Tech Used (0) 0 Bonus (102) 102 TOTAL SCORE: 5004 Bonus ------- Follower Combat Kills 102 Cogmind --------- Core Integrity 0/850 Matter 212/300 Energy 100/100 System Corruption 18% Temperature Cool (6) Movement Core (100) Ox1 Location -6/Factory Parts ------- > --- POWER (2) -------- (None) > --- PROPULSION (6) --- (None) > --- UTILITY (5) ------ Improved Signal Interpreter Improved Signal Interpreter > --- WEAPON (2) ------- Precision Grenade Launcher > --- INVENTORY (5) ---- (None) Peak State ------------ > --- POWER ------------ Light Nuclear Core Light Nuclear Core > --- PROPULSION ------- VTOL Module VTOL Module VTOL Module VTOL Module Nuclear Pulse Thruster > --- UTILITY ---------- Improved Heat Sink Improved Sensor Array Improved Signal Interpreter ECM Suite > --- WEAPON ----------- Cooled Particle Cannon Ripper > --- INVENTORY -------- Light Nuclear Core Compact Wheel [Rating: 38] Favorites ----------- Power Light Ion Engine Engine Light Ion Engine Power Core Light Nuclear Core Propulsion Aluminum Leg Treads Advanced Treads Leg Aluminum Leg Wheel Wheel Hover Unit Airjet Flight Unit VTOL Module Utility ECM Suite Device ECM Suite Storage Small Storage Unit Processor Improved Signal Interpreter Weapon Ripper Energy Gun Field Laser Energy Cannon Beam Cannon Ballistic Gun Light Assault Rifle Ballistic Cannon Flak Cannon Launcher Grenade Launcher Slashing Weapon Ripper Build | -11 -10 -10 -10 -9 -8 -7 -6 ------- Run | Yrd Mat Min Exi Min Mat Fac Fac Slots Evolved 8 | . . . . . 4 2 2 Power 1 | . . . . . . 1 . Propulsion 4 | . . . . . 2 1 1 Utility 3 | . . . . . 2 . 1 Weapon . | . . . . . . . . Parts Attached 105 | 5 14 7 2 4 12 32 29 Power 12 | 1 1 . . 1 2 5 2 Engine 7 | 1 1 . . 1 1 2 1 Core 5 | . . . . . 1 3 1 Reactor . | . . . . . . . . Propulsion 37 | 2 4 3 1 2 2 11 12 Treads 1 | . . . . . . 1 . Leg 7 | 2 2 2 1 . . . . Wheel 3 | . . . . . . 1 2 Hover 7 | . 2 . . . . 2 3 Flight 19 | . . 1 . 2 2 7 7 Utility 29 | 1 5 2 1 1 4 10 5 Device 23 | . 4 2 1 1 4 7 4 Storage 2 | 1 1 . . . . . . Processor 4 | . . . . . . 3 1 Hackware . | . . . . . . . . Protection . | . . . . . . . . Artifact . | . . . . . . . . Weapon 27 | 1 4 2 . . 4 6 10 Energy Gun 6 | . . . . . 1 . 5 Energy Cannon 5 | . 1 . . . 1 1 2 Ballistic Gun 1 | 1 . . . . . . . Ballistic Cannon 3 | . 1 . . . . 2 . Launcher 4 | . 2 . . . 1 . 1 Special Weapon . | . . . . . . . . Impact Weapon . | . . . . . . . . Slashing Weapon 8 | . . 2 . . 1 3 2 Piercing Weapon . | . . . . . . . . Special Melee Weapon . | . . . . . . . . Unidentified Prototypes 3 | . . . . . . 1 2 Parts Lost 53 | . . . . 4 13 8 28 Power 9 | . . . . 1 2 2 4 Propulsion 24 | . . . . 2 4 3 15 Utility 11 | . . . . . 4 2 5 Weapon 9 | . . . . 1 3 1 4 Highest Loss Streak 8 | . . . . 3 6 8 8 To Critical Strikes 1 | . . . . . . . 1 Average Slot Usage (%) 74 | . 85 99 99 87 37 59 38 Engine 9 | . 13 14 14 13 1 7 . Core 1 | . . . . . 3 5 1 Leg 14 | . 18 27 27 24 . . . Flight 5 | . . . . 2 13 13 10 Device 18 | . 17 28 28 28 9 8 5 Processor 3 | . . . . . . 9 10 Energy Cannon 1 | . 1 4 . . . . . Launcher 6 | . 12 14 14 3 . . . Slashing Weapon 7 | . . 8 14 13 1 6 1 Naked Turns 57 | . . . . . 57 . . Heaviest Build 51 | 9 51 12 16 16 14 23 21 Greatest Support 31 | 20 20 20 30 30 16 31 26 Greatest Overweight (x) 8 | . 8 . . . 3 1 2 Average Overweight (x) . | . . . . . . . . Largest Inventory Capacity 20 | 8 20 5 5 5 5 5 5 Average Capacity 5 | 6 10 5 5 5 5 5 5 Most Carried 5 | 3 5 5 5 5 5 5 5 Average Carried 3 | 1 2 3 4 4 2 2 1 Final Capacity 8 | 8 5 5 5 5 5 5 5 Final Carried 5 | 2 1 5 5 4 3 5 . Class Distribution -------------------- 75% | Mutant 11% | Scavenger-Sprinter 11% | Scavenger-Mutant Dominant Class ---------------- Mutant | -10/Materials Mutant | -10/Mines Mutant | -10/Exiles Mutant | -9/Mines Mutant | -8/Materials Mutant | -7/Factory Scavenger-Mutant | -6/Factory Resources | -11 -10 -10 -10 -9 -8 -7 -6 ----------- Run | Yrd Mat Min Exi Min Mat Fac Fac Matter Collected 1382 | 230 125 138 . 147 49 414 279 Remotely . | . . . . . . . . Salvage Created 1271 | . 258 . . 77 137 440 359 Parts 78 | . 16 . . 2 7 27 26 Haulers Intercepted 1 | . 1 . . . . . . Recyclers Shooed 4 | . 2 . . . . . 2 Parts Field Recycled . | . . . . . . . . Retrieved Matter . | . . . . . . . . Parts Self-Destructed . | . . . . . . . . Prevented . | . . . . . . . . Kills | -11 -10 -10 -10 -9 -8 -7 -6 ------- Run | Yrd Mat Min Exi Min Mat Fac Fac Combat Hostiles Destroyed 27 | . 6 . . . 4 8 9 Melee 9 | . . . . . 2 6 1 Guns 1 | . . . . . . . 1 Cannons 9 | . 1 . . . . 2 6 AOE 8 | . 5 . . . 2 . 1 Classes Destroyed 11 | . 5 . . . 3 2 1 Worker 4 | . . . . . . 2 2 Builder 3 | . 1 . . . . 1 1 Hauler 1 | . 1 . . . . . . Recycler 4 | . 1 . . 1 . 2 . Watcher 3 | . 1 . . . . 1 1 Swarmer 12 | . . . . . . 6 6 Grunt 6 | . 6 . . . . . . Brawler 2 | . . . . . 1 . 1 Sentry 3 | . . . . . 1 2 . Hunter 2 | . . . . . 2 . . Programmer 2 | . . . . . . . 2 Best Kill Streak 9 | . 7 . . 1 2 9 4 Combat Bots Only 4 | . 4 . . . 2 3 3 Max Kills in Single Turn 2 | . 2 . . 1 1 1 1 Gunslinging . | . . . . . . . . Exploded 1 | . 1 . . . 1 . 1 Melee 1 | . . . . . 1 1 1 Uniques/NPCs Destroyed . | . . . . . . . . Combat | -11 -10 -10 -10 -9 -8 -7 -6 -------- Run | Yrd Mat Min Exi Min Mat Fac Fac Hostile Shots Fired 528 | . 36 2 . 32 89 168 201 Missed 198 | . 15 1 . 8 22 80 72 Damage Taken 4705 | . 263 6 . 389 1000 975 2072 Core 1808 | . 81 . . 138 485 250 854 Absorbed by Shields . | . . . . . . . . Regen/Repaired (Parts) 52 | . . . . . . 52 . Core Remaining (%) 46 | 100 . . . 12 11 64 . Volleys Fired 105 | . 19 . . . 14 30 42 Largest 1 | . 1 . . . 1 1 1 Hottest 90 | . 35 . . . 63 44 90 Shots Fired 106 | . 19 . . . 14 30 43 Gun 22 | . . . . . 5 . 17 Cannon 63 | . 10 . . . 3 30 20 Launcher 21 | . 9 . . . 6 . 6 Special . | . . . . . . . . Kinetic 30 | . 10 . . . . 20 . Thermal 38 | . . . . . 8 10 20 Explosive 21 | . 9 . . . 6 . 6 Electromagnetic 17 | . . . . . . . 17 Robot Hit Streak 12 | . 3 . . . 12 7 6 Robot Miss Streak 10 | . 2 . . . 3 10 6 Penetration Max . | . . . . . . . . Secondary Targets . | . . . . . . . . Shots Hit Robots 107 | . 11 . . 4 16 42 34 Core Hits 72 | . 18 . . 1 11 23 19 Critical Kills . | . . . . . . . . Critical Parts Destroyed . | . . . . . . . . Critical Strikes 2 | . . . . . 1 1 . Sever 2 | . . . . . 1 1 . Melee Attacks 41 | . . . . 6 7 17 11 Impact . | . . . . . . . . Slashing 41 | . . . . 6 7 17 11 Piercing . | . . . . . . . . Sneak Attacks 7 | . . . . 1 . 5 1 Combat Hostiles . | . . . . . . . . Follow-up Attacks . | . . . . . . . . Damage Inflicted 4201 | . 736 . . 197 507 1304 1457 Guns 168 | . . . . . 86 . 82 Cannons 1160 | . 116 . . . 24 449 571 Explosions 1224 | . 620 . . . 215 . 389 Melee 1649 | . . . . 197 182 855 415 Ramming . | . . . . . . . . Kinetic 404 | . 116 . . . . 288 . Thermal 893 | . . . . . 110 161 622 Explosive 1127 | . 620 . . . 215 . 292 Electromagnetic 128 | . . . . . . . 128 Impact . | . . . . . . . . Slashing 1649 | . . . . 197 182 855 415 Piercing . | . . . . . . . . Highest Corruption 19 | . . . . . 4 . 19 Average Corruption 16 | . . . . . 4 . 17 Corruption Purged 5 | . . . . . . . 5 Corruption Blocked . | . . . . . . . . Effects 34 | . . . . . 1 . 33 Message Errors 7 | . . . . . . . 7 Matter Fused 9 | . . . . . 1 . 8 Heat Flow Errors 5 | . . . . . . . 5 Energy Discharges 1 | . . . . . . . 1 Parts Rejected 1 | . . . . . . . 1 Data Loss (minor) 7 | . . . . . . . 7 Data Loss (major) 2 | . . . . . . . 2 Misfires 1 | . . . . . . . 1 Misdirections 1 | . . . . . . . 1 Overload Shots 13 | . . . . . . . 13 Overflow Damage 385 | . 12 . . 43 3 147 180 Projectiles 64 | . . . . . . . 64 Explosions 74 | . 12 . . . 3 . 59 Melee 247 | . . . . 43 . 147 57 Knockbacks 6 | . 1 . . . . 5 . Impact . | . . . . . . . . Kinetic 6 | . 1 . . . . 5 . Secondary . | . . . . . . . . Self-Inflicted Damage 145 | . 5 . . . 43 . 97 Shots 7 | . 1 . . . 2 . 4 Rammed . | . . . . . . . . Targets Rammed . | . . . . . . . . Kicked . | . . . . . . . . Crushed . | . . . . . . . . Highest Temperature 261 | . 28 . . . 49 67 261 Average Temperature 47 | . 14 . . . 20 33 76 Received Heat Transfer 828 | . 186 . . . 333 81 228 Siege Activations . | . . . . . . . . Robots Corrupted . | . . . . . . . . Combat Hostiles . | . . . . . . . . Parts Fried . | . . . . . . . . Impact Corruptions . | . . . . . . . . Robots Melted . | . . . . . . . . Combat Hostiles . | . . . . . . . . Parts Melted 1 | . . . . . . . 1 Heat Transferred 1079 | . . . . . 222 222 635 Parts Sabotaged . | . . . . . . . . Parts Stolen . | . . . . . . . . Parts Stripped . | . . . . . . . . Power Chain Reactions . | . . . . . . . . Alert | -11 -10 -10 -10 -9 -8 -7 -6 ------- Run | Yrd Mat Min Exi Min Mat Fac Fac Peak Influence 327 | . 242 94 . 136 133 153 327 Initial 94 | . . 94 . . 1 60 74 Average 103 | . 119 75 . 90 52 82 172 Maximum Alert Level 1 | . 1 . . . . . 1 Low Security (%) 85 | 100 64 100 . 100 100 100 56 Level 1 14 | . 35 . . . . . 43 Level 2 . | . . . . . . . . Level 3 . | . . . . . . . . Level 4 . | . . . . . . . . Level 5 . | . . . . . . . . High Security . | . . . . . . . . Max Security . | . . . . . . . . Squads Dispatched 5 | . . . . . . 1 4 Investigation 1 | . . . . . . 1 . Extermination 2 | . . . . . . . 2 Reinforcement 2 | . . . . . . . 2 Assault . | . . . . . . . . Garrison . | . . . . . . . . Intercept . | . . . . . . . . Searches Triggered . | . . . . . . . . Construction Impeded 1 | . . . . . . . 1 Haulers Reinforced . | . . . . . . . . Active Scanning Responses . | . . . . . . . . Cargo Convoy Interrupts . | . . . . . . . . Stealth | -11 -10 -10 -10 -9 -8 -7 -6 --------- Run | Yrd Mat Min Exi Min Mat Fac Fac Distress Signals 1 | . . . . . . . 1 Communications Jammed . | . . . . . . . . Distress Signals . | . . . . . . . . Times Spotted 69 | . 9 3 . 9 11 11 26 Peak Tracking Total 7 | . 5 3 . 3 6 3 7 Tactical Retreats 14 | . . 1 . 2 2 2 7 Traps | -11 -10 -10 -10 -9 -8 -7 -6 ------- Run | Yrd Mat Min Exi Min Mat Fac Fac Traps Triggered 5 | . 2 . . . . . 3 Indirectly . | . . . . . . . . Trap Hack Attempts . | . . . . . . . . Triggered . | . . . . . . . . Disarmed . | . . . . . . . . Reprogrammed . | . . . . . . . . Reused . | . . . . . . . . Traps Extracted . | . . . . . . . . Installed . | . . . . . . . . Triggered . | . . . . . . . . Machines | -11 -10 -10 -10 -9 -8 -7 -6 ---------- Run | Yrd Mat Min Exi Min Mat Fac Fac Machines Disabled 10 | . . . . . 2 . 8 Max in Single Turn 4 | . . . . . 1 . 4 Machines Repaired . | . . . . . . . . Machines Dismantled . | . . . . . . . . Machines Sabotaged . | . . . . . . . . Overloaded Fab Kills . | . . . . . . . . Hacking | -11 -10 -10 -10 -9 -8 -7 -6 --------- Run | Yrd Mat Min Exi Min Mat Fac Fac Machines Accessed 3 | . 1 . . . 1 1 . Terminals 2 | . 1 . . . 1 . . Fabricators . | . . . . . . . . Repair Stations 1 | . . . . . . 1 . Recycling Units . | . . . . . . . . Scanalyzers . | . . . . . . . . Garrison Access . | . . . . . . . . Total Hacks 12 | . 4 . . . 1 7 . Successful 8 | . 1 . . . 1 6 . Failed 4 | . 3 . . . . 1 . Catastrophic . | . . . . . . . . Database Lockouts . | . . . . . . . . Manual 1 | . . . 1 . . . . Terminals 5 | . 4 . . . 1 . . Fabricators . | . . . . . . . . Repair Stations 7 | . . . . . . 7 . Recycling Units . | . . . . . . . . Scanalyzers . | . . . . . . . . Garrison Access . | . . . . . . . . Terminal Hacks 2 | . 1 . . . 1 . . Level Access Points 1 | . 1 . . . . . . Emergency Access Points 1 | . . . . . 1 . . Fabricator Hacks . | . . . . . . . . Repair Station Hacks 6 | . . . . . . 6 . Scan Component 3 | . . . . . . 3 . Repair 3 | . . . . . . 3 . Recycling Unit Hacks . | . . . . . . . . Scanalyzer . | . . . . . . . . Garrison Access Hacks . | . . . . . . . . Unauthorized Hacks . | . . . . . . . . Terminals . | . . . . . . . . Fabricators . | . . . . . . . . Repair Stations . | . . . . . . . . Recycling Units . | . . . . . . . . Scanalyzers . | . . . . . . . . Garrison Access . | . . . . . . . . Data Cores Recovered . | . . . . . . . . Used . | . . . . . . . . Hacking Detections 2 | . 1 . . . . 1 . Full Trace Events 1 | . . . . . . 1 . Feedback Events . | . . . . . . . . Feedback Blocked . | . . . . . . . . Robot Schematics Acquired . | . . . . . . . . Robots Built . | . . . . . . . . Authchips . | . . . . . . . . Time . | . . . . . . . . Total Robot Build Rating . | . . . . . . . . Part Schematics Acquired . | . . . . . . . . Parts Built . | . . . . . . . . Authchips . | . . . . . . . . Time . | . . . . . . . . Total Part Build Rating . | . . . . . . . . Parts Repaired 3 | . . . . . . 3 . Time 102 | . . . . . . 102 . Parts Recycled . | . . . . . . . . Recycled Matter . | . . . . . . . . Retrieved Matter . | . . . . . . . . Retrieved Components . | . . . . . . . . Parts Scanalyzed . | . . . . . . . . Part Schematics Acquired . | . . . . . . . . Parts Damaged . | . . . . . . . . Bothacking | -11 -10 -10 -10 -9 -8 -7 -6 ------------ Run | Yrd Mat Min Exi Min Mat Fac Fac Used RIF Installer . | . . . . . . . . Robots Hacked . | . . . . . . . . Non-combat . | . . . . . . . . Combat . | . . . . . . . . Robot Hacks Applied . | . . . . . . . . Relay Couplers Released . | . . . . . . . . Fabnet Peak Effective % . | . . . . . . . . Robots Rewired . | . . . . . . . . Allies Hacked . | . . . . . . . . Hacks Repelled . | . . . . . . . . Allies | -11 -10 -10 -10 -9 -8 -7 -6 -------- Run | Yrd Mat Min Exi Min Mat Fac Fac Total Allies 3 | . . 3 . . . . . Largest Group 3 | . . 3 3 3 . . . Highest-Rated Group 40 | . . 40 40 40 . . . Highest-Rated Ally 16 | . . 16 16 16 . . . Total Orders . | . . . . . . . . Ally Attacks 32 | . . 9 . 23 . . . Total Damage 327 | . . 76 . 251 . . . Kills 8 | . . 3 . 5 . . . Allies Corrupted . | . . . . . . . . Allies Melted . | . . . . . . . . Intel | -11 -10 -10 -10 -9 -8 -7 -6 ------- Run | Yrd Mat Min Exi Min Mat Fac Fac Robot Analysis Total . | . . . . . . . . Derelict Logs Recovered 3 | . . 1 . 2 . . . Drone Launches . | . . . . . . . . Drone Recoveries . | . . . . . . . . Exploration | -11 -10 -10 -10 -9 -8 -7 -6 ------------- Run | Yrd Mat Min Exi Min Mat Fac Fac Turns Passed 4103 | 62 331 660 872 439 283 680 776 Spaces Moved 3655 | 46 168 502 676 324 288 668 983 Core 233 | 7 23 . . . 147 21 35 Treads 75 | . . . . . . 75 . Legs 1585 | 39 134 502 676 234 . . . Wheels 103 | . . . . . . 32 71 Hover 272 | . 11 . . . . 105 156 Flight 1387 | . . . . 90 141 435 721 Fastest Speed 20 | 50 100 120 120 37 31 23 20 Average Speed 83 | 109 150 120 125 104 71 52 41 Slowest Speed 540 | 120 540 120 130 140 200 145 195 Overloaded Moves . | . . . . . . . . Propulsion Burnouts . | . . . . . . . . Robots Hopped 6 | . . . . 2 . 3 1 Cave-ins Triggered . | . . . . . . . . Exploration Rate (%) 40 | 4 30 91 91 57 21 15 14 Regions Visited 7 Branch Regions 3 Pre-discovered Areas . | . . . . . . . . Known Exits Taken 2 | . . . . . 1 1 . Unknown Exits Taken 5 | 1 1 1 1 1 . . . Scrap Searched 2 | . . 2 . . . . . Spaces Dug . | . . . . . . . . Terrain Destroyed 135 | . 44 . . . 30 . 61 Melee . | . . . . . . . . Projectile 5 | . . . . . . . 5 AOE 130 | . 44 . . . 30 . 56 Terrain Rammed . | . . . . . . . . Walls Destroyed . | . . . . . . . . Machines Disabled . | . . . . . . . . Actions | -11 -10 -10 -10 -9 -8 -7 -6 --------- Run | Yrd Mat Min Exi Min Mat Fac Fac Total 4533 | 57 230 558 702 415 342 937 1292 Wait 519 | . 10 41 18 78 12 159 201 Move 3636 | 45 167 501 675 319 287 661 981 Hop 6 | . . . . 2 . 3 1 Pick Up 83 | 7 13 6 3 3 7 26 18 Fast Attach 3 | . . . . . . 2 1 Attach 94 | 5 14 2 2 4 11 28 28 Detach 19 | . 1 1 . 1 3 6 7 Swap 8 | . . 5 . . 1 2 . Drop 18 | . 6 2 3 2 . 3 2 Fire 105 | . 19 . . . 14 30 42 Melee 41 | . . . . 6 7 17 11 Ram . | . . . . . . . . Kick . | . . . . . . . . Crush . | . . . . . . . . Escape Stasis . | . . . . . . . . Rewire 1 | . . . 1 . . . . Trap . | . . . . . . . . Miscellaneous . | . . . . . . . . Route ------- -11/Scrapyard -10/Materials (discovered 4 exits: Mat x3 / [*Min]) -10/Mines (discovered 3 exits: *Mat x2 / *Exi) -10/Exiles (discovered 2 exits: [*Min x2]) -9/Mines (discovered 2 exits: *Mat x2) -8/Materials (discovered 2 exits: *Fac x2) -7/Factory (discovered 2 exits: *Fac x2) -6/Factory History --------- Turn | Location | Event 6 | -11/Scrapyard | Discovered new exit (range 16) 63 | -11/Scrapyard | Entered Materials 222 | -10/Materials | Discovered new exit (range 8) 315 | -10/Materials | Build established: Mutant 364 | -10/Materials | Identified exit to Materials 394 | -10/Materials | Entered Mines 623 | -10/Mines | A weapon hastily lodged in a ceiling crevice suddenly fell to the ground 853 | -10/Mines | Assisted by bots powering up and referring to "LRC-V3" 929 | -10/Mines | Learned 2 Materials zone layouts 1030 | -10/Mines | Discovered exit to Materials (range 12) 1038 | -10/Mines | Discovered exit to Materials (range 14) 1048 | -10/Mines | Deemed a non-threat by the Exiles lab entrance 1049 | -10/Mines | Discovered new exit (range 5) 1054 | -10/Mines | Entered Exiles 1054 | -10/Exiles | Found Exiles lab destroyed 1054 | -10/Exiles | Accompanied by 3 allies 1076 | -10/Exiles | Discovered new exit (range 15) 1628 | -10/Exiles | Discovered new exit (range 14) 1926 | -10/Exiles | Entered Mines 1926 | -9/Mines | Accompanied by 3 allies 1952 | -9/Mines | Assembled infested the area 1955 | -9/Mines | Met a Derelict bent on vengeance 1990 | -9/Mines | Discovered new exit (range 5) 2004 | -9/Mines | Learned Materials garrison access intel 2097 | -9/Mines | Discovered new exit (range 11) 2315 | -9/Mines | Core integrity fell below 50% 2319 | -9/Mines | Core integrity fell below 20% 2351 | -9/Mines | Lost 3 parts (1p2n) 2365 | -9/Mines | Entered Materials 2365 | -8/Materials | Evolved 4 slots: Propulsion x2, Utility x2 2366 | -8/Materials | Identified exit to Factory 2368 | -8/Materials | Loaded intel: 1 garrison access location 2467 | -8/Materials | Lost 4 parts (1p2n1u) 2550 | -8/Materials | Lost 3 parts (2n1u) 2581 | -8/Materials | Core integrity fell below 50% 2618 | -8/Materials | Discovered exit to Factory (range 3) 2626 | -8/Materials | Lost 6 parts (1p2u3w) 2646 | -8/Materials | Core integrity fell below 20% 2648 | -8/Materials | Entered Factory 2648 | -7/Factory | Evolved 2 slots: Power x1, Propulsion x1 2909 | -7/Factory | Discovered new exit (range 10) 3060 | -7/Factory | Lost 8 parts (2p3n2u1w) 3089 | -7/Factory | Identified exit to Factory 3141 | -7/Factory | Repaired VTOL Module 3181 | -7/Factory | Repaired Lgt. Nuclear Core 3213 | -7/Factory | Repaired VTOL Module? 3278 | -7/Factory | Discovered exit to Factory (range 16) 3328 | -7/Factory | Entered another Factory area 3328 | -6/Factory | Evolved 2 slots: Propulsion x1, Utility x1 3379 | -6/Factory | System corruption reached 10% 3412 | -6/Factory | Lost 8 parts (1p4n3u) 3514 | -6/Factory | Lost 7 parts (2p4n1w) 3668 | -6/Factory | Core integrity fell below 50% 3697 | -6/Factory | Lost 6 parts (1p3n1u1w) 3961 | -6/Factory | Build established: Scavenger-Mutant 4079 | -6/Factory | Core integrity fell below 20% 4104 | -6/Factory | Destroyed by Y-54 Guardian with Flak Gun Last Messages --------------- Fusion Modulator explodes. Neutrino Reactor explodes. Fabricator disabled. System corrupted: Matter fused (-6). Wheel destroyed. Imp. Sensor Array destroyed. ALERT: Rogue bot located, Programmers report to Factory Zone 7H. Nuclear Reactor explodes. Wheel destroyed. Destroyed Wheel. Imp. Lightning Gun destroyed. Destroyed Imp. Lightning Gun. Imp. Hover Unit destroyed. Destroyed Imp. Hover Unit. Acquired Prototype Launcher. Nuclear Reactor explodes. Identified Prc. Grenade Launcher. P-60 Hacker destroyed. The unstable cave ceiling collapses. Map ----- +----------------------------------------------------+ | | | | | | | | | | | | | | | | | | | | | ?????????????????????????????????????????????????? | | ????????????????????? ??????#???????????????????? | | ?????????????????????" ????? #???????????????????? | | ?????????????????????" !?""" #??? ???????????????? | | ?????????????????????? ?""" ??? ""??????????????? | | ?????????????????????? ? ?? "??????????????? | | ?????????????????????? ? !??= ??????????????? | | ?????????????????????## # ## ??????????????? | | ????????????????????## # ???????????????? | | ??????????????####### """???????????????? | | ??????????????? """???????????????? | | ????????????????? Y """???????????????? | | ??????????????????? "?????????????????? | | ????????????????????? ???????????????????? | | ??????????????????????? ?????????????????????? | | ????????????????#########@####???????????????????? | | ????????????????# #???????????????????? | | ????????????????# !!] #???????????????????? | | ????????????????# !!] #???????????????????? | | ????????????????# !! #???????????????????? | | ????????????????# #???????????????????? | | ???????????????## ###???????????????????? | | ?????????????? #####???????????????? | | ??????????? ##T"#???????????????? | | ?????????? "############+#### | | ?????????? | | ?????????? # | | ??????????? # % | | ??????????? ^ | | ????????????### | | ??????????????# #+##### T## "" | | ??????????????## ##### "" | | ???????????????# # #???# "F | | ???????????????# # #???# """ | | ???????????????############## #???# "" | | ????????????????????????????###########???# | | ?????????????????????????????????????????? | | ??????????????????????????????????????????###+#### | | ?????????????????????????????????????????????????? | | ?????????????????????????????????????????????????? | +----------------------------------------------------+ Best States ------------- Heat Dissipation 51 Coolant Potential 50 Energy Generation 23 Energy Capacity 315 Matter Stores 300 Matter Capacity 300 Sight Range 16 Robot Scan Range 19 Terrain Scan Range 14 Terrain Scan Density 85 ECM Strength 2 Additional Mass Support 9 Evasion (%) 66 Melee Accuracy 6 Recoil Reduction 1 Item Schematics ----------------- None Robot Schematics ------------------ None Fabricated ------------ Nothing Alien Tech Used ----------------- None Achievements -------------- Can't Catch Me I Spy I Survived The Infestation Overkill Universal Adapter Challenges ------------ None Game ------ Seed LargeAlloyNanovents Manual? 0 Play Time 00:59:22 Cumulative 5.7 hours Start 2024.04.03 @ 13:46:13 End 2024.04.03 @ 14:43:39 Sessions 1 Manual Loads 0 Difficulty Rogue Special Mode None Game No. 8 Rogue 7 Adventurer 1 Explorer 0 Win Type - Total 0 Types 0/0/0/0/0/0/0/0/0 Lore% 3 Gallery% 15 Achievement% 12 Wizard Run 0 Options --------- Layout 1 ASCII 0 Keyboard 0 Movement Mouse Keybinds 0 Fullscreen 2 Font 24/Smallcaps Map View 50x35 Zoom Use 0% Tactical HUD 0 Map Filters NONE Filters NONE Steam 1 RUN: 30432db2-29c0-4711-a252-cae420890236